[Event "Titled Tuesday Blitz May 23 Late 2023"]
[White "Kirillov, Dmitry"]
[Black "coquitovich"]
[WhiteFideId "34180572"]
[WhiteElo "2161"]
[BlackElo "2154"]
[Result "1-0"]
[Round "06"]
[TimeControl "180+2"]
[Date "2023.05.23"]
[WhiteClock "0:00:08"]
[BlackClock "0:00:11"]

1. e4 {[%clk 0:03:00]}  g6 {[%clk 0:02:57]} 2. d4 {[%clk 0:02:57]}  b6 {[%clk 0:02:54]} 3. Bc4 {[%clk 0:02:52]}  Bg7 {[%clk 0:02:51]} 4. Nc3 {[%clk 0:02:48]}  Bb7 {[%clk 0:02:52]} 5. Nf3 {[%clk 0:02:44]}  e6 {[%clk 0:02:52]} 6. Bf4 {[%clk 0:02:43]}  Ne7 {[%clk 0:02:51]} 7. Qd2 {[%clk 0:02:42]}  h6 {[%clk 0:02:45]} 8. h3 {[%clk 0:02:39]}  d6 {[%clk 0:02:31]} 9. O-O {[%clk 0:02:38]}  Nd7 {[%clk 0:02:31]} 10. Rfe1 {[%clk 0:02:37]}  a6 {[%clk 0:02:30]} 11. a4 {[%clk 0:02:37]}  Nf8 {[%clk 0:02:14]} 12. Rad1 {[%clk 0:02:31]}  g5 {[%clk 0:02:13]} 13. Bh2 {[%clk 0:02:29]}  Nfg6 {[%clk 0:02:13]} 14. d5 {[%clk 0:01:13]}  e5 {[%clk 0:02:12]} 15. Bd3 {[%clk 0:01:12]}  Qd7 {[%clk 0:02:03]} 16. b3 {[%clk 0:01:09]}  Nf4 {[%clk 0:01:42]} 17. Bxf4 {[%clk 0:01:08]}  gxf4 {[%clk 0:01:38]} 18. Qe2 {[%clk 0:01:06]}  Bf6 {[%clk 0:01:38]} 19. Nh2 {[%clk 0:01:04]}  h5 {[%clk 0:01:33]} 20. Nb1 {[%clk 0:00:57]}  Ng6 {[%clk 0:01:31]} 21. Nd2 {[%clk 0:00:55]}  Nh4 {[%clk 0:01:31]} 22. Kh1 {[%clk 0:00:52]}  Kd8 {[%clk 0:00:59]} 23. Rg1 {[%clk 0:00:52]}  Kc8 {[%clk 0:00:49]} 24. a5 {[%clk 0:00:48]}  b5 {[%clk 0:00:43]} 25. b4 {[%clk 0:00:48]}  Kb8 {[%clk 0:00:38]} 26. c4 {[%clk 0:00:47]}  bxc4 {[%clk 0:00:28]} 27. Nxc4 {[%clk 0:00:48]}  Ka7 {[%clk 0:00:28]} 28. f3 {[%clk 0:00:43]}  Rag8 {[%clk 0:00:27]} 29. b5 {[%clk 0:00:41]}  Rg3 {[%clk 0:00:18]} 30. bxa6 {[%clk 0:00:30]}  Bc8 {[%clk 0:00:17]} 31. Rb1 {[%clk 0:00:22]}  Rhg8 {[%clk 0:00:16]} 32. Qf2+ {[%clk 0:00:13]}  Ka8 {[%clk 0:00:17]} 33. Nb6+ {[%clk 0:00:14]}  cxb6 {[%clk 0:00:17]} 34. Qxb6 {[%clk 0:00:15]}  Qa7 {[%clk 0:00:12]} 35. Qc6+ {[%clk 0:00:15]}  Bb7 {[%clk 0:00:11]} 36. axb7+ {[%clk 0:00:07]}  Kb8 {[%clk 0:00:11]} 37. Qxd6# {[%clk 0:00:08]} 1-0


[Site "https://www.chess.com"]

[Event "Titled Tuesday Blitz May 23 Late 2023"]
[White "Zaitsev, Alexander"]
[Black "Osiecki, Stanislaw"]
[WhiteFideId "4164490"]
[BlackFideId "1102990"]
[WhiteElo "2373"]
[BlackElo "2088"]
[Result "1-0"]
[Round "06"]
[TimeControl "180+2"]
[Date "2023.05.23"]
[WhiteClock "0:00:16"]
[BlackClock "0:00:00"]

1. e4 {[%clk 0:03:00]}  e6 {[%clk 0:02:54]} 2. d4 {[%clk 0:03:00]}  d5 {[%clk 0:02:54]} 3. Nc3 {[%clk 0:03:01]}  Bb4 {[%clk 0:02:53]} 4. e5 {[%clk 0:03:02]}  c5 {[%clk 0:02:53]} 5. Bd2 {[%clk 0:03:02]}  Bxc3 {[%clk 0:02:52]} 6. Bxc3 {[%clk 0:03:02]}  cxd4 {[%clk 0:02:53]} 7. Qxd4 {[%clk 0:03:01]}  Nc6 {[%clk 0:02:53]} 8. Qg4 {[%clk 0:03:00]}  Kf8 {[%clk 0:02:49]} 9. Nf3 {[%clk 0:02:56]}  h5 {[%clk 0:02:49]} 10. Qf4 {[%clk 0:02:53]}  Nge7 {[%clk 0:02:46]} 11. Bd3 {[%clk 0:02:44]}  Kg8 {[%clk 0:02:40]} 12. O-O-O {[%clk 0:02:40]}  Bd7 {[%clk 0:02:33]} 13. g4 {[%clk 0:02:20]}  Ng6 {[%clk 0:01:52]} 14. Bxg6 {[%clk 0:01:50]}  fxg6 {[%clk 0:01:51]} 15. gxh5 {[%clk 0:01:49]}  gxh5 {[%clk 0:01:48]} 16. Rhg1 {[%clk 0:01:49]}  Qf8 {[%clk 0:01:37]} 17. Qg3 {[%clk 0:01:40]}  Ne7 {[%clk 0:01:14]} 18. Nh4 {[%clk 0:01:29]}  Qf7 {[%clk 0:01:05]} 19. Bb4 {[%clk 0:01:23]}  Nf5 {[%clk 0:00:59]} 20. Nxf5 {[%clk 0:01:22]}  exf5 {[%clk 0:00:58]} 21. Rxd5 {[%clk 0:01:04]}  Be6 {[%clk 0:00:58]} 22. Rd6 {[%clk 0:01:04]}  Rh7 {[%clk 0:00:56]} 23. f4 {[%clk 0:00:54]}  Rc8 {[%clk 0:00:50]} 24. Rgd1 {[%clk 0:00:48]}  Rh6 {[%clk 0:00:20]} 25. Qg5 {[%clk 0:00:40]}  Qg6 {[%clk 0:00:13]} 26. Qe7 {[%clk 0:00:35]}  Kh7 {[%clk 0:00:07]} 27. Bc3 {[%clk 0:00:24]}  Re8 {[%clk 0:00:06]} 28. Qxb7 {[%clk 0:00:24]}  Qg4 {[%clk 0:00:05]} 29. Bd2 {[%clk 0:00:17]}  Rg6 {[%clk 0:00:00]} 30. b3 {[%clk 0:00:16]} 1-0


[Site "https://www.chess.com"]

[Event "Titled Tuesday Blitz May 23 Late 2023"]
[White "Ismayil, Malak"]
[Black "Ottosen, David"]
[WhiteFideId "13412604"]
[BlackFideId "2603080"]
[WhiteElo "1868"]
[BlackElo "2044"]
[Result "1-0"]
[Round "06"]
[TimeControl "180+2"]
[Date "2023.05.23"]
[WhiteClock "0:01:26"]
[BlackClock "0:00:53"]

1. e4 {[%clk 0:03:00]}  e6 {[%clk 0:03:00]} 2. d4 {[%clk 0:02:58]}  d5 {[%clk 0:03:00]} 3. Nd2 {[%clk 0:02:53]}  Be7 {[%clk 0:03:00]} 4. Bd3 {[%clk 0:02:39]}  c5 {[%clk 0:02:59]} 5. dxc5 {[%clk 0:02:37]}  Bxc5 {[%clk 0:02:59]} 6. Ngf3 {[%clk 0:02:37]}  Nf6 {[%clk 0:02:57]} 7. O-O {[%clk 0:02:37]}  Nc6 {[%clk 0:02:51]} 8. Qe2 {[%clk 0:02:36]}  dxe4 {[%clk 0:02:43]} 9. Nxe4 {[%clk 0:02:37]}  Nxe4 {[%clk 0:02:42]} 10. Qxe4 {[%clk 0:02:37]}  Bd7 {[%clk 0:02:37]} 11. Bg5 {[%clk 0:02:36]}  Be7 {[%clk 0:02:34]} 12. Bxe7 {[%clk 0:02:32]}  Qxe7 {[%clk 0:02:35]} 13. Rfe1 {[%clk 0:02:32]}  Rc8 {[%clk 0:02:24]} 14. a3 {[%clk 0:02:31]}  Na5 {[%clk 0:02:19]} 15. b4 {[%clk 0:02:27]}  Bc6 {[%clk 0:02:13]} 16. Qg4 {[%clk 0:02:27]}  Bxf3 {[%clk 0:02:01]} 17. Qxf3 {[%clk 0:02:27]}  Nc6 {[%clk 0:02:01]} 18. Qg4 {[%clk 0:02:17]}  O-O {[%clk 0:01:59]} 19. Re3 {[%clk 0:02:16]}  Rfd8 {[%clk 0:01:53]} 20. Rg3 {[%clk 0:02:12]}  g6 {[%clk 0:01:53]} 21. Qf4 {[%clk 0:02:09]}  e5 {[%clk 0:01:50]} 22. Qh6 {[%clk 0:02:07]}  Nd4 {[%clk 0:01:38]} 23. Rh3 {[%clk 0:02:00]}  f5 {[%clk 0:01:35]} 24. c4 {[%clk 0:01:35]}  e4 {[%clk 0:01:31]} 25. Bf1 {[%clk 0:01:35]}  Nc2 {[%clk 0:00:58]} 26. Rc1 {[%clk 0:01:27]}  Rd2 {[%clk 0:00:53]} 27. Qxd2 {[%clk 0:01:26]} 1-0


[Site "https://www.chess.com"]

[Event "Titled Tuesday Blitz May 23 Late 2023"]
[White "Romero Ruscalleda, Josep"]
[Black "Vovk, Orest"]
[WhiteFideId "2231859"]
[BlackFideId "14113490"]
[WhiteElo "2183"]
[BlackElo "2215"]
[Result "0-1"]
[Round "06"]
[TimeControl "180+2"]
[Date "2023.05.23"]
[WhiteClock "0:00:21"]
[BlackClock "0:00:08"]

1. e4 {[%clk 0:03:00]}  g5 {[%clk 0:02:57]} 2. d4 {[%clk 0:03:00]}  g4 {[%clk 0:02:56]} 3. Qxg4 {[%clk 0:02:56]}  d5 {[%clk 0:02:56]} 4. Qe2 {[%clk 0:02:53]}  dxe4 {[%clk 0:02:56]} 5. Qxe4 {[%clk 0:02:51]}  Nf6 {[%clk 0:02:56]} 6. Qd3 {[%clk 0:02:51]}  Nc6 {[%clk 0:02:57]} 7. c3 {[%clk 0:02:51]}  Qd5 {[%clk 0:02:55]} 8. Nf3 {[%clk 0:02:47]}  Bg4 {[%clk 0:02:55]} 9. Be2 {[%clk 0:02:46]}  O-O-O {[%clk 0:02:55]} 10. Be3 {[%clk 0:02:39]}  Rg8 {[%clk 0:02:54]} 11. Qc4 {[%clk 0:02:20]}  Bxf3 {[%clk 0:02:52]} 12. gxf3 {[%clk 0:02:20]}  e5 {[%clk 0:02:50]} 13. Qxd5 {[%clk 0:02:17]}  Nxd5 {[%clk 0:02:50]} 14. dxe5 {[%clk 0:02:15]}  Nxe5 {[%clk 0:02:50]} 15. Nd2 {[%clk 0:02:15]}  Nxe3 {[%clk 0:02:16]} 16. fxe3 {[%clk 0:02:15]}  Bc5 {[%clk 0:02:16]} 17. Nf1 {[%clk 0:01:59]}  Rg2 {[%clk 0:01:24]} 18. Rd1 {[%clk 0:01:53]}  Re8 {[%clk 0:01:18]} 19. Rd5 {[%clk 0:01:42]}  Bb6 {[%clk 0:00:55]} 20. c4 {[%clk 0:01:06]}  c6 {[%clk 0:00:54]} 21. Rd2 {[%clk 0:01:03]}  Ba5 {[%clk 0:00:54]} 22. b3 {[%clk 0:01:00]}  Bxd2+ {[%clk 0:00:18]} 23. Nxd2 {[%clk 0:00:58]}  Nd3+ {[%clk 0:00:13]} 24. Bxd3 {[%clk 0:00:44]}  Rxe3+ {[%clk 0:00:12]} 25. Kf1 {[%clk 0:00:41]}  Rxd2 {[%clk 0:00:12]} 26. Be4 {[%clk 0:00:35]}  Rc3 {[%clk 0:00:09]} 27. Ke1 {[%clk 0:00:32]}  Rxa2 {[%clk 0:00:08]} 28. Kd1 {[%clk 0:00:27]}  Rxb3 {[%clk 0:00:08]} 29. Kc1 {[%clk 0:00:27]}  Ra1+ {[%clk 0:00:07]} 30. Kc2 {[%clk 0:00:27]}  Rxh1 {[%clk 0:00:08]} 31. Kxb3 {[%clk 0:00:27]}  Rxh2 {[%clk 0:00:09]} 32. Kb4 {[%clk 0:00:26]}  Kc7 {[%clk 0:00:09]} 33. Kc5 {[%clk 0:00:26]}  h5 {[%clk 0:00:10]} 34. Kd4 {[%clk 0:00:26]}  Kd6 {[%clk 0:00:09]} 35. c5+ {[%clk 0:00:26]}  Ke7 {[%clk 0:00:09]} 36. Ke5 {[%clk 0:00:26]}  h4 {[%clk 0:00:10]} 37. Kf4 {[%clk 0:00:26]}  Rg2 {[%clk 0:00:10]} 38. Ke5 {[%clk 0:00:24]}  h3 {[%clk 0:00:10]} 39. f4 {[%clk 0:00:24]}  Re2 {[%clk 0:00:10]} 40. f5 {[%clk 0:00:24]}  h2 {[%clk 0:00:09]} 41. f6+ {[%clk 0:00:25]}  Kd7 {[%clk 0:00:08]} 42. Kf4 {[%clk 0:00:21]}  Rxe4+ {[%clk 0:00:08]} 0-1


[Site "https://www.chess.com"]

[Event "Titled Tuesday Blitz May 23 Late 2023"]
[White "Mikhalsky, Vladimir"]
[Black "olga-belka"]
[WhiteFideId "14144352"]
[WhiteElo "2236"]
[BlackElo "2259"]
[Result "1/2-1/2"]
[Round "06"]
[TimeControl "180+2"]
[Date "2023.05.23"]
[WhiteClock "0:00:10"]
[BlackClock "0:00:06"]

1. d4 {[%clk 0:02:43]}  Nf6 {[%clk 0:02:58]} 2. c4 {[%clk 0:02:42]}  g6 {[%clk 0:02:57]} 3. f3 {[%clk 0:02:42]}  d5 {[%clk 0:02:55]} 4. cxd5 {[%clk 0:02:42]}  Nxd5 {[%clk 0:02:55]} 5. e4 {[%clk 0:02:43]}  Nb6 {[%clk 0:02:56]} 6. Nc3 {[%clk 0:02:43]}  Bg7 {[%clk 0:02:55]} 7. Be3 {[%clk 0:02:44]}  O-O {[%clk 0:02:54]} 8. Qd2 {[%clk 0:02:44]}  c5 {[%clk 0:02:49]} 9. dxc5 {[%clk 0:02:31]}  Qxd2+ {[%clk 0:02:48]} 10. Kxd2 {[%clk 0:02:31]}  N6d7 {[%clk 0:02:45]} 11. Kc2 {[%clk 0:02:19]}  Na6 {[%clk 0:02:35]} 12. Bxa6 {[%clk 0:02:15]}  bxa6 {[%clk 0:02:35]} 13. b4 {[%clk 0:02:08]}  Bb7 {[%clk 0:02:34]} 14. Nge2 {[%clk 0:02:05]}  e6 {[%clk 0:02:26]} 15. Bd4 {[%clk 0:02:03]}  Rfc8 {[%clk 0:02:24]} 16. Bxg7 {[%clk 0:02:02]}  Kxg7 {[%clk 0:02:24]} 17. Rhd1 {[%clk 0:01:59]}  Ne5 {[%clk 0:02:22]} 18. Kb3 {[%clk 0:01:57]}  a5 {[%clk 0:02:19]} 19. a3 {[%clk 0:01:56]}  Ba6 {[%clk 0:02:14]} 20. f4 {[%clk 0:01:47]}  Bc4+ {[%clk 0:02:12]} 21. Kc2 {[%clk 0:01:41]}  Nc6 {[%clk 0:02:09]} 22. b5 {[%clk 0:01:31]}  Ne7 {[%clk 0:02:00]} 23. c6 {[%clk 0:01:30]}  a4 {[%clk 0:01:45]} 24. Rd7 {[%clk 0:01:21]}  Kf8 {[%clk 0:01:44]} 25. Nd4 {[%clk 0:01:15]}  a6 {[%clk 0:01:40]} 26. Rxe7 {[%clk 0:01:14]}  Kxe7 {[%clk 0:01:37]} 27. b6 {[%clk 0:01:15]}  Rab8 {[%clk 0:01:28]} 28. b7 {[%clk 0:00:47]}  Rc7 {[%clk 0:01:26]} 29. Nxa4 {[%clk 0:00:45]}  Bb5 {[%clk 0:01:17]} 30. Nc5 {[%clk 0:00:44]}  Bxc6 {[%clk 0:01:14]} 31. Nxa6 {[%clk 0:00:44]}  Bxe4+ {[%clk 0:01:11]} 32. Kd2 {[%clk 0:00:44]}  Rcxb7 {[%clk 0:01:02]} 33. Nxb8 {[%clk 0:00:43]}  Rxb8 {[%clk 0:01:02]} 34. g4 {[%clk 0:00:32]}  Rb2+ {[%clk 0:00:57]} 35. Ke3 {[%clk 0:00:32]}  Bd5 {[%clk 0:00:55]} 36. h4 {[%clk 0:00:23]}  Rh2 {[%clk 0:00:54]} 37. a4 {[%clk 0:00:21]}  Rxh4 {[%clk 0:00:50]} 38. g5 {[%clk 0:00:20]}  Rh3+ {[%clk 0:00:46]} 39. Ke2 {[%clk 0:00:20]}  h6 {[%clk 0:00:39]} 40. gxh6 {[%clk 0:00:19]}  Rxh6 {[%clk 0:00:39]} 41. a5 {[%clk 0:00:20]}  Rh2+ {[%clk 0:00:36]} 42. Kd3 {[%clk 0:00:19]}  Rf2 {[%clk 0:00:24]} 43. Ke3 {[%clk 0:00:19]}  Rh2 {[%clk 0:00:21]} 44. a6 {[%clk 0:00:19]}  Rh3+ {[%clk 0:00:20]} 45. Kd2 {[%clk 0:00:19]}  f6 {[%clk 0:00:18]} 46. a7 {[%clk 0:00:18]}  Rh8 {[%clk 0:00:18]} 47. Nb5 {[%clk 0:00:17]}  e5 {[%clk 0:00:16]} 48. Nc7 {[%clk 0:00:15]}  Ba8 {[%clk 0:00:14]} 49. fxe5 {[%clk 0:00:15]}  fxe5 {[%clk 0:00:14]} 50. Ke3 {[%clk 0:00:15]}  Kd7 {[%clk 0:00:12]} 51. Nxa8 {[%clk 0:00:14]}  Rxa8 {[%clk 0:00:12]} 52. Ke4 {[%clk 0:00:14]}  Kc7 {[%clk 0:00:12]} 53. Kxe5 {[%clk 0:00:15]}  Kb7 {[%clk 0:00:12]} 54. Kd6 {[%clk 0:00:14]}  Rxa7 {[%clk 0:00:12]} 55. Rb1+ {[%clk 0:00:13]}  Kc8 {[%clk 0:00:12]} 56. Ke6 {[%clk 0:00:11]}  Ra6+ {[%clk 0:00:11]} 57. Kf7 {[%clk 0:00:11]}  Kd7 {[%clk 0:00:11]} 58. Kg7 {[%clk 0:00:11]}  g5 {[%clk 0:00:10]} 59. Rf1 {[%clk 0:00:10]}  g4 {[%clk 0:00:08]} 60. Rg1 {[%clk 0:00:10]}  Ra4 {[%clk 0:00:08]} 61. Kf6 {[%clk 0:00:10]}  Kd6 {[%clk 0:00:07]} 62. Kf5 {[%clk 0:00:10]}  Kd5 {[%clk 0:00:07]} 63. Kg5 {[%clk 0:00:10]}  Ke5 {[%clk 0:00:06]} 64. Kh4 {[%clk 0:00:10]}  Kf5 {[%clk 0:00:06]} 65. Rf1+ {[%clk 0:00:09]}  Kg6 {[%clk 0:00:07]} 66. Rb1 {[%clk 0:00:08]}  Rc4 {[%clk 0:00:06]} 67. Rb6+ {[%clk 0:00:08]}  Kf5 {[%clk 0:00:06]} 68. Rb5+ {[%clk 0:00:09]}  Kg6 {[%clk 0:00:06]} 69. Rb6+ {[%clk 0:00:09]}  Kf5 {[%clk 0:00:06]} 70. Rb8 {[%clk 0:00:09]}  Kg6 {[%clk 0:00:06]} 71. Rg8+ {[%clk 0:00:09]}  Kf5 {[%clk 0:00:06]} 72. Re8 {[%clk 0:00:09]}  Kg6 {[%clk 0:00:06]} 73. Re5 {[%clk 0:00:08]}  Kf6 {[%clk 0:00:06]} 74. Rg5 {[%clk 0:00:08]}  Rb4 {[%clk 0:00:05]} 75. Rg8 {[%clk 0:00:08]}  Ra4 {[%clk 0:00:04]} 76. Rf8+ {[%clk 0:00:08]}  Kg7 {[%clk 0:00:04]} 77. Rf2 {[%clk 0:00:07]}  Kg6 {[%clk 0:00:05]} 78. Rc2 {[%clk 0:00:07]}  Kh6 {[%clk 0:00:04]} 79. Rc5 {[%clk 0:00:07]}  Kg6 {[%clk 0:00:05]} 80. Rg5+ {[%clk 0:00:08]}  Kh6 {[%clk 0:00:05]} 81. Rh5+ {[%clk 0:00:08]}  Kg6 {[%clk 0:00:05]} 82. Rb5 {[%clk 0:00:08]}  Kh6 {[%clk 0:00:06]} 83. Rb6+ {[%clk 0:00:08]}  Kg7 {[%clk 0:00:06]} 84. Kg5 {[%clk 0:00:08]}  Ra5+ {[%clk 0:00:06]} 85. Kf4 {[%clk 0:00:08]}  Ra4+ {[%clk 0:00:06]} 86. Kg3 {[%clk 0:00:08]}  Kf7 {[%clk 0:00:06]} 87. Kh4 {[%clk 0:00:08]}  Kg7 {[%clk 0:00:06]} 88. Rb3 {[%clk 0:00:09]}  Kg6 {[%clk 0:00:06]} 89. Re3 {[%clk 0:00:09]}  Kh6 {[%clk 0:00:06]} 90. Re6+ {[%clk 0:00:09]}  Kg7 {[%clk 0:00:07]} 91. Rb6 {[%clk 0:00:09]}  Kf7 {[%clk 0:00:06]} 92. Kg5 {[%clk 0:00:09]}  Ra5+ {[%clk 0:00:05]} 93. Kxg4 {[%clk 0:00:09]}  Ra4+ {[%clk 0:00:05]} 94. Kf5 {[%clk 0:00:09]}  Ra5+ {[%clk 0:00:06]} 95. Ke4 {[%clk 0:00:09]}  Ra4+ {[%clk 0:00:06]} 96. Kd5 {[%clk 0:00:10]}  Ra5+ {[%clk 0:00:06]} 97. Kc6 {[%clk 0:00:10]}  Ra2 {[%clk 0:00:06]} 98. Rb5 {[%clk 0:00:10]}  Rc2+ {[%clk 0:00:06]} 99. Rc5 {[%clk 0:00:10]}  Rxc5+ {[%clk 0:00:06]} 100. Kxc5 {[%clk 0:00:10]} 1/2-1/2


[Site "https://www.chess.com"]

[Event "Titled Tuesday Blitz May 23 Late 2023"]
[White "zsizsi99"]
[Black "Parizek, Vojtech"]
[BlackFideId "360996"]
[WhiteElo "2397"]
[BlackElo "2115"]
[Result "0-1"]
[Round "06"]
[TimeControl "180+2"]
[Date "2023.05.23"]
[WhiteClock "0:00:00"]
[BlackClock "0:00:06"]

1. e4 {[%clk 0:03:00]}  c5 {[%clk 0:02:59]} 2. Nf3 {[%clk 0:03:00]}  d6 {[%clk 0:03:00]} 3. Bc4 {[%clk 0:02:58]}  g6 {[%clk 0:02:55]} 4. O-O {[%clk 0:02:57]}  Bg7 {[%clk 0:02:56]} 5. c3 {[%clk 0:02:54]}  Nf6 {[%clk 0:02:41]} 6. Re1 {[%clk 0:02:52]}  O-O {[%clk 0:02:40]} 7. h3 {[%clk 0:02:52]}  e5 {[%clk 0:02:38]} 8. d4 {[%clk 0:02:51]}  cxd4 {[%clk 0:02:34]} 9. cxd4 {[%clk 0:02:52]}  Nc6 {[%clk 0:02:34]} 10. d5 {[%clk 0:02:46]}  Na5 {[%clk 0:02:25]} 11. Bf1 {[%clk 0:02:43]}  Bd7 {[%clk 0:02:23]} 12. b4 {[%clk 0:02:43]}  Nxe4 {[%clk 0:02:04]} 13. Rxe4 {[%clk 0:02:35]}  f5 {[%clk 0:02:04]} 14. Re1 {[%clk 0:02:31]}  e4 {[%clk 0:02:03]} 15. Nd4 {[%clk 0:02:32]}  Qb6 {[%clk 0:02:02]} 16. Nc2 {[%clk 0:02:21]}  Bxa1 {[%clk 0:01:43]} 17. Be3 {[%clk 0:02:21]}  Qc7 {[%clk 0:01:24]} 18. Nxa1 {[%clk 0:02:13]}  Nc4 {[%clk 0:01:22]} 19. Bh6 {[%clk 0:02:09]}  Rf7 {[%clk 0:01:19]} 20. Qd4 {[%clk 0:02:04]}  Ne5 {[%clk 0:01:15]} 21. Nb3 {[%clk 0:01:49]}  Re8 {[%clk 0:01:01]} 22. Rc1 {[%clk 0:01:42]}  Qd8 {[%clk 0:01:00]} 23. Qxa7 {[%clk 0:01:37]}  f4 {[%clk 0:00:58]} 24. Qd4 {[%clk 0:01:27]}  Qh4 {[%clk 0:00:57]} 25. Bxf4 {[%clk 0:01:07]}  Qxf4 {[%clk 0:00:55]} 26. Qe3 {[%clk 0:01:07]}  Qxe3 {[%clk 0:00:44]} 27. fxe3 {[%clk 0:01:07]}  Ref8 {[%clk 0:00:44]} 28. N1d2 {[%clk 0:01:03]}  Nd3 {[%clk 0:00:34]} 29. Bxd3 {[%clk 0:00:59]}  exd3 {[%clk 0:00:35]} 30. Ne4 {[%clk 0:00:47]}  Re7 {[%clk 0:00:30]} 31. Nbd2 {[%clk 0:00:45]}  Bf5 {[%clk 0:00:25]} 32. Nxd6 {[%clk 0:00:24]}  Rxe3 {[%clk 0:00:23]} 33. N6c4 {[%clk 0:00:15]}  Re2 {[%clk 0:00:22]} 34. Rf1 {[%clk 0:00:12]}  Rd8 {[%clk 0:00:14]} 35. g4 {[%clk 0:00:12]}  Be4 {[%clk 0:00:12]} 36. Nxe4 {[%clk 0:00:13]}  Rxe4 {[%clk 0:00:12]} 37. Nd2 {[%clk 0:00:12]}  Rd4 {[%clk 0:00:11]} 38. Rf6 {[%clk 0:00:11]}  R8xd5 {[%clk 0:00:10]} 39. Rb6 {[%clk 0:00:11]}  Rd7 {[%clk 0:00:10]} 40. a4 {[%clk 0:00:11]}  R4d6 {[%clk 0:00:07]} 41. Rb5 {[%clk 0:00:11]}  Re6 {[%clk 0:00:07]} 42. Kf1 {[%clk 0:00:06]}  Re2 {[%clk 0:00:07]} 43. Nf3 {[%clk 0:00:00]}  Rf7 {[%clk 0:00:06]} 0-1


[Site "https://www.chess.com"]

[Event "Titled Tuesday Blitz May 23 Late 2023"]
[White "Della Corte, Alessandro"]
[Black "Hartikainen, Jarmo"]
[WhiteFideId "813540"]
[BlackFideId "503134"]
[WhiteElo "2205"]
[BlackElo "2086"]
[Result "1-0"]
[Round "06"]
[TimeControl "180+2"]
[Date "2023.05.23"]
[WhiteClock "0:01:42"]
[BlackClock "0:00:04"]

1. d4 {[%clk 0:02:59]}  Nf6 {[%clk 0:02:59]} 2. c4 {[%clk 0:02:58]}  e6 {[%clk 0:02:59]} 3. Nf3 {[%clk 0:02:57]}  b6 {[%clk 0:02:58]} 4. a3 {[%clk 0:02:57]}  Bb7 {[%clk 0:02:57]} 5. Nc3 {[%clk 0:02:57]}  Be7 {[%clk 0:02:55]} 6. d5 {[%clk 0:02:57]}  exd5 {[%clk 0:02:43]} 7. cxd5 {[%clk 0:02:58]}  d6 {[%clk 0:02:41]} 8. e4 {[%clk 0:02:58]}  Nbd7 {[%clk 0:02:39]} 9. Bd3 {[%clk 0:02:55]}  a5 {[%clk 0:02:36]} 10. O-O {[%clk 0:02:54]}  O-O {[%clk 0:02:31]} 11. Nd4 {[%clk 0:02:52]}  Nc5 {[%clk 0:02:23]} 12. Bc2 {[%clk 0:02:51]}  Re8 {[%clk 0:02:19]} 13. Bg5 {[%clk 0:02:49]}  Nfxe4 {[%clk 0:01:38]} 14. Bxe7 {[%clk 0:02:32]}  Qxe7 {[%clk 0:00:40]} 15. Re1 {[%clk 0:02:20]}  Nxc3 {[%clk 0:00:37]} 16. Bxh7+ {[%clk 0:02:20]}  Kh8 {[%clk 0:00:19]} 17. bxc3 {[%clk 0:02:15]}  Qxe1+ {[%clk 0:00:18]} 18. Qxe1 {[%clk 0:02:16]}  Rxe1+ {[%clk 0:00:18]} 19. Rxe1 {[%clk 0:02:17]}  Kxh7 {[%clk 0:00:18]} 20. Re7 {[%clk 0:02:17]}  Na6 {[%clk 0:00:18]} 21. c4 {[%clk 0:02:16]}  Rf8 {[%clk 0:00:17]} 22. Nb5 {[%clk 0:02:12]}  Kg8 {[%clk 0:00:16]} 23. Nxd6 {[%clk 0:02:09]}  cxd6 {[%clk 0:00:14]} 24. Rxb7 {[%clk 0:02:10]}  Nc5 {[%clk 0:00:13]} 25. Rxb6 {[%clk 0:02:09]}  Rd8 {[%clk 0:00:13]} 26. h4 {[%clk 0:02:03]}  a4 {[%clk 0:00:13]} 27. g4 {[%clk 0:02:02]}  g6 {[%clk 0:00:13]} 28. Kg2 {[%clk 0:02:01]}  Kf8 {[%clk 0:00:13]} 29. Kg3 {[%clk 0:02:01]}  Ke7 {[%clk 0:00:13]} 30. f3 {[%clk 0:01:58]}  Kd7 {[%clk 0:00:13]} 31. Rb1 {[%clk 0:01:56]}  Kc7 {[%clk 0:00:12]} 32. Re1 {[%clk 0:01:55]}  Kd7 {[%clk 0:00:12]} 33. h5 {[%clk 0:01:50]}  gxh5 {[%clk 0:00:12]} 34. gxh5 {[%clk 0:01:51]}  Rh8 {[%clk 0:00:12]} 35. Kg4 {[%clk 0:01:51]}  Nd3 {[%clk 0:00:11]} 36. Rb1 {[%clk 0:01:46]}  Ne5+ {[%clk 0:00:11]} 37. Kg5 {[%clk 0:01:45]}  Nxf3+ {[%clk 0:00:11]} 38. Kf4 {[%clk 0:01:44]}  Ne5 {[%clk 0:00:10]} 39. Kg5 {[%clk 0:01:45]}  Nxc4 {[%clk 0:00:09]} 40. Rb7+ {[%clk 0:01:44]}  Kc8 {[%clk 0:00:07]} 41. Ra7 {[%clk 0:01:43]}  Nxa3 {[%clk 0:00:06]} 42. Ra8+ {[%clk 0:01:43]}  Kd7 {[%clk 0:00:06]} 43. Rxh8 {[%clk 0:01:44]}  Nb5 {[%clk 0:00:05]} 44. Ra8 {[%clk 0:01:43]}  a3 {[%clk 0:00:05]} 45. h6 {[%clk 0:01:43]}  a2 {[%clk 0:00:05]} 46. Rxa2 {[%clk 0:01:42]}  Nc3 {[%clk 0:00:06]} 47. Ra7+ {[%clk 0:01:41]}  Ke8 {[%clk 0:00:04]} 48. h7 {[%clk 0:01:42]}  Nxd5 {[%clk 0:00:04]} 49. h8=Q# {[%clk 0:01:42]} 1-0


[Site "https://www.chess.com"]

[Event "Titled Tuesday Blitz May 23 Late 2023"]
[White "Bogaudinov, Rushan"]
[Black "Sariego Figueredo, Wilfredo"]
[WhiteFideId "4129288"]
[BlackFideId "3500080"]
[WhiteElo "1941"]
[BlackElo "2309"]
[Result "1-0"]
[Round "06"]
[TimeControl "180+2"]
[Date "2023.05.23"]
[WhiteClock "0:02:00"]
[BlackClock "0:01:13"]

1. a4 {[%clk 0:02:56]}  c5 {[%clk 0:02:58]} 2. h4 {[%clk 0:02:55]}  d5 {[%clk 0:02:56]} 3. d3 {[%clk 0:02:55]}  e5 {[%clk 0:02:56]} 4. h5 {[%clk 0:02:55]}  Nc6 {[%clk 0:02:56]} 5. Nc3 {[%clk 0:02:53]}  Be6 {[%clk 0:02:50]} 6. Nf3 {[%clk 0:02:52]}  Nf6 {[%clk 0:02:48]} 7. h6 {[%clk 0:02:51]}  g6 {[%clk 0:02:42]} 8. Ng5 {[%clk 0:02:50]}  Be7 {[%clk 0:02:35]} 9. e4 {[%clk 0:02:47]}  dxe4 {[%clk 0:02:29]} 10. Nxe6 {[%clk 0:02:45]}  fxe6 {[%clk 0:02:27]} 11. Bg5 {[%clk 0:02:32]}  exd3 {[%clk 0:02:26]} 12. Bxd3 {[%clk 0:02:32]}  Kf7 {[%clk 0:02:20]} 13. O-O {[%clk 0:02:28]}  Nd4 {[%clk 0:02:08]} 14. Re1 {[%clk 0:02:25]}  Qb8 {[%clk 0:01:56]} 15. Nb5 {[%clk 0:02:15]}  a6 {[%clk 0:01:50]} 16. Nxd4 {[%clk 0:02:10]}  exd4 {[%clk 0:01:51]} 17. Bc4 {[%clk 0:02:04]}  Re8 {[%clk 0:01:13]} 18. Rxe6 {[%clk 0:02:00]} 1-0


[Site "https://www.chess.com"]